{"text_format":"1","workbook":"xlsx","n_sheets":14,"sheets":["Plan d'actions","Feuil2","Siège des lésions","Données 2016","Données générales","1","2","3","4","5","6","7","8","SSSE"],"not_rendered":{"charts":9,"images":1,"macros":1,"external_links":9,"defined_names":2536,"comments":1,"pivot_tables":2},"unopened":[],"bounds":{"document_bytes":16777216,"sheet_cells":100000,"rows_first":2000,"rows_last":500,"rows_between":2000,"halvings":0,"cell_chars":16384,"cell_head_chars":4096},"cells_cut":0,"cells_raw":0,"read":"whole","date_system":"1900"}

{"sheet":"Plan d'actions","index":0,"n_rows":4,"n_cols":15,"rows_kept":4,"cut":false,"hidden":true,"merged":[[32,2,32,10],[33,2,33,10],[34,2,34,10],[35,2,35,10],[36,2,36,10],[31,2,31,10],[20,2,20,10],[21,2,21,10],[22,2,22,10],[23,2,23,10],[24,2,24,10],[25,2,25,10],[26,2,26,10],[27,2,27,10],[28,2,28,10],[29,2,29,10],[30,2,30,10],[19,2,19,10],[8,2,8,10],[9,2,9,10],[10,2,10,10],[11,2,11,10],[12,2,12,10],[13,2,13,10],[14,2,14,10],[15,2,15,10],[16,2,16,10],[17,2,17,10],[18,2,18,10],[7,2,7,10],[1,1,1,11],[3,2,3,10],[4,2,4,10],[5,2,5,10],[6,2,6,10]]}
[]
[null,"Plan d'actions"]
[]
[null,"N°","ACTION",null,null,null,null,null,null,null,null,"PILOTE","SUPPORT","DATE","STATUT"]

{"sheet":"Feuil2","index":1,"n_rows":5,"n_cols":3,"rows_kept":5,"cut":false,"hidden":true,"merged":[]}
["ANNEE","(vide)"]
[]
[null,"Étiquettes de colonnes"]
[null,"AB","Total général"]
["Nombre de TYPOLOGIE",1,1]

{"sheet":"Siège des lésions","index":2,"n_rows":4,"n_cols":2,"rows_kept":4,"cut":false,"hidden":true,"merged":[]}
[]
[]
["Étiquettes de lignes","Nombre de TYPOLOGIE"]
["Total général"]

{"sheet":"Données 2016","index":3,"n_rows":59,"n_cols":21,"rows_kept":59,"cut":false,"hidden":true,"merged":[]}
["Semaine : ",51]
["Semaines ","# d'évènements non analysés ","Objectif","# de VSP / Visites terrain réalisées par Q3SE","Objectif","# d'actions en retard > 2 semaines","Objectif","# d'audits internes / suivi réalisés (cumulé à date)","Objectif","# de FOPI ou actions de progrès détectées par VSP","Objectif","# d'actions de progrès réalisées (cumulé à date)","Objectif","# de personnes formées 3SE (cumulé à date)","Objectif","# de personnes formées Q.Op","Objectif","# de personnes sensibilisées au SMI","Objectif","# de personne ayant fait l'ANE (cumulé à date)","Objectif"]
["Lien vers dossier source","CHRONO",null,"Onglet vistes 2016",null,"Onglet dysfonctionnement",null,"Programme de surveillance",null,null,null,"Base Dysfonctionnements - onglet \"Action CS\")",null,"Onglet suivi des formations",null,"Onglet suivi des formations"]
[1,null,2,null,3,null,250,null,0,null,1,null,0,null,2.7,null,0,null,0,null,0]
[2,null,2,null,3,null,250,null,0,null,1,null,0,null,5.4,null,0,null,0,null,0]
[3,null,2,null,3,null,250,null,{"$f":"+I5+1","v":1},null,1,null,0,null,{"$f":"+O5+2.7","v":8.1000000000000014},null,{"$f":"+Q5+2","v":2},null,{"$f":"+S5+1","v":1},null,{"$f":"+U5+1","v":1}]
[4,null,2,null,3,null,250,null,{"$f":"+I6+1","v":2},null,1,null,0,null,{"$f":"+O6+2.7","v":10.8},null,{"$f":"+Q6+2","v":4},null,{"$f":"+S6+1","v":2},3,2]
[5,null,2,null,3,null,250,null,3,null,1,null,1,18,{"$f":"+O7+2.7","v":13.5},null,6,null,3,null,3]
[6,null,2,null,3,null,250,null,4,null,1,null,1,null,16.2,29,8,null,4,null,4]
[7,null,2,null,3,null,250,null,5,null,1,null,1,null,18.899999999999999,null,10,null,5,4,5]
[8,null,2,null,3,null,250,null,6,null,1,null,1,null,21.599999999999998,null,12,null,6,13,6]
[9,null,2,null,3,null,250,null,7,null,1,null,2,null,24.299999999999997,{"$f":"+P9+8","v":37},14,null,7,13,7]
[10,null,2,null,3,null,250,null,8,null,1,1,2,null,26.999999999999996,null,16,null,8,13,8]
[11,null,2,1,3,null,250,null,9,null,1,null,2,null,29.699999999999996,null,18,null,9,13,9]
[12,5,2,null,3,272,250,null,10,null,1,null,2,36,32.4,null,20,null,10,13,10]
[13,null,2,1,3,null,250,null,11,null,1,null,3,36,35.1,null,22,1,11,13,11]
[14,null,2,1,3,null,250,null,12,null,1,null,3,36,37.800000000000004,null,24,8,12,13,12]
[15,null,2,null,3,null,250,null,13,null,1,null,3,36,40.500000000000007,null,26,8,13,13,13]
[16,null,2,null,3,null,245,1,14,null,1,null,4,36,43.20000000000001,null,28,8,14,13,14]
[17,null,2,null,3,null,240,1,15,null,1,null,4,36,45.900000000000013,null,30,8,15,13,15]
[18,null,2,null,3,null,235,1,16,null,1,null,4,36,48.600000000000016,null,32,8,16,24,16]
[19,1,2,3,3,168,230,4,17,0,1,1,4,36,51.300000000000018,{"$f":"+P12+3","v":40},34,8,17,24,17]
[20,null,2,null,3,null,225,4,18,null,1,1,5,36,54.000000000000021,40,36,8,18,24,18]
[21,1,2,5,3,190,220,5,19,null,1,2,5,36,56.700000000000024,40,38,8,19,24,19]
[22,1,2,3,3,191,215,5,20,0,1,3,5,49,59.400000000000027,47,40,8,20,24,20]
[23,2,2,2,3,191,210,6,21,null,1,4,5,49,62.10000000000003,96,42,8,21,42,21]
[24,1,2,2,3,109,205,6,22,null,1,5,6,49,64.800000000000026,96,44,8,22,42,22]
[25,1,2,0,3,108,200,6,23,null,1,5,6,49,67.500000000000028,96,46,8,23,42,23]
[26,1,2,1,3,108,195,6,24,null,1,5,6,49,70.200000000000031,96,48,8,24,42,24]
[27,1,2,2,3,108,190,8,25,null,1,6,6,49,72.900000000000034,96,50,14,25,42,25]
[28,2,2,0,3,141,185,8,26,null,1,6,{"$f":"M30+1","v":7},49,75.600000000000037,96,52,14,26,42,26]
[29,2,2,null,3,141,180,8,27,null,1,6,7,49,78.30000000000004,96,54,14,27,42,27]
[30,2,2,2,3,96,175,8,28,null,1,6,7,49,81.000000000000043,96,56,14,28,42,28]
[31,3,2,1,3,107,170,8,29,null,1,6,7,49,83.700000000000045,96,58,14,29,44,29]
[32,1,2,3,3,107,165,8,30,null,1,6,8,49,86.400000000000048,96,60,14,30,44,30]
[33,1,2,1,3,107,160,8,31,null,1,6,8,49,89.100000000000051,96,62,14,31,44,31]
[34,1,2,3,3,114,155,8,32,null,1,6,8,49,91.800000000000054,96,64,14,32,44,32]
[35,1,2,0,3,114,150,8,33,null,1,6,8,49,94.500000000000057,96,66,14,33,44,33]
[36,1,2,1,3,114,145,8,34,null,1,6,8,49,97.20000000000006,96,68,14,34,46,34]
[37,1,2,0,3,114,140,9,35,null,1,6,9,49,99.900000000000063,96,70,14,35,46,35]
[38,1,2,3,3,114,135,9,36,null,1,6,9,49,102.60000000000007,96,72,14,36,47,36]
[39,1,2,2,3,114,130,9,37,null,1,6,9,49,105.30000000000007,96,74,14,37,49,37]
[40,1,2,2,3,107,125,11,38,null,1,6,9,49,108.00000000000007,96,76,14,38,49,38]
[41,1,2,1,3,107,120,11,39,null,1,6,10,49,110.70000000000007,96,78,14,39,49,39]
[42,1,2,1,3,89,115,11,40,null,1,6,10,49,113.40000000000008,96,80,14,40,49,40]
[43,1,2,2,3,89,110,11,41,null,1,6,10,49,116.10000000000008,96,82,14,41,54,41]
[44,2,2,1,3,123,105,11,42,null,1,6,10,49,118.80000000000008,96,84,15,42,60,42]
[45,2,2,2,3,67,100,11,43,null,1,26,10,50,121.50000000000009,96,86,15,43,62,43]
[46,2,2,6,3,87,95,13,44,null,1,26,11,50,124.20000000000009,96,88,15,44,62,44]
[47,3,2,2,3,90,90,14,45,null,1,26,11,54,126.90000000000009,96,90,15,45,62,45]
[48,2,2,4,3,90,85,22,46,null,1,26,11,54,129.60000000000008,96,92,15,46,62,46]
[49,2,2,2,3,82,80,22,47,null,1,54,12,54,132.30000000000007,96,94,15,47,62,47]
[50,1,2,2,3,82,75,24,48,null,1,54,12,54,135.00000000000006,96,96,15,48,62,48]
[51,0,2,1,3,90,70,24,49,null,1,79,12,54,137.70000000000005,96,98,15,49,65,49]
[52,0,2,1,3,90,65,24,{"$f":"+I54+1","v":50},null,1,79,12,54,{"$f":"+O54+2.7","v":140.40000000000003},96,{"$f":"+Q54+2","v":100},15,{"$f":"+S54+1","v":50},65,{"$f":"+U54+1","v":50}]
[1,0,2,1,3,90,65,24,{"$f":"+I55+1","v":51},null,1,79,12,54,{"$f":"+O55+2.7","v":143.10000000000002},2,{"$f":"+Q55+2","v":102},15,{"$f":"+S55+1","v":51},65,{"$f":"+U55+1","v":51}]
[2]
[3]
["TOTAL",null,null,{"$f":"SUM(D4:D56)","v":65},null,null,null,{"$f":"SUM(H4:H55)","v":361},null,{"$f":"SUM(J4:J55)","v":0},null,{"$f":"SUM(L4:L55)","v":505},12,{"$f":"N25","v":49},null,{"$f":"SUM(P4:P55)","v":3113},null,null,null,{"$f":"VLOOKUP(B1,B4:B55,18,1)","v":{"$error":"#REF!"}}]

{"sheet":"Données générales","index":4,"n_rows":25,"n_cols":45,"rows_kept":25,"cut":false,"hidden":false,"merged":[]}
["Matrice DO CC","Résultats","Objectif","2018-01-01","2018-02-01","2018-03-01","2018-04-01","2018-05-01","2018-06-01","2018-07-01","2018-08-01","2018-09-01","2018-10-01","2018-11-01","2018-12-01",null,null,null,null,null,null,null,"Actions issues visites",null,null,"Visites sécu",null,null,null,null,null,null,null,null,null,null,null,null,null,null,null,null,null,null,"PROJETS"]
["3SE",null,null,null,null,null,null,null,null,null,null,null,null,null,null,null,"Chantiers 5s",null,null,null,null,null,"Valeur :",{"$f":"B8","v":0},null,"Valeur :",{"$f":"B7+B9","v":0},null,null,null,null,null,null,null,null,null,null,null,null,null,null,null,null,null,"GIE IMAC"]
["Nombre d'accident avec arrêt",{"$f":"SUM(D3:O3)/C3","v":3.5},4,{"$f":"SUM('1'!C3,'2'!C3,'3'!C3,'6'!C3,'5'!C3,'7'!C3,'8'!C3,'4'!C3)","v":11},{"$f":"SUM('1'!E3,'2'!E3,'3'!E3,'6'!E3,'5'!E3,'7'!E3,'8'!E3,'4'!E3)","v":3},{"$f":"SUM('1'!F3,'2'!F3,'3'!F3,'6'!F3,'5'!F3,'7'!F3,'8'!F3,'4'!F3)","v":0},{"$f":"SUM('1'!F3,'2'!F3,'3'!F3,'6'!F3,'5'!F3,'7'!F3,'8'!F3,'4'!F3)","v":0},{"$f":"SUM('1'!H3,'2'!H3,'3'!H3,'6'!H3,'5'!H3,'7'!H3,'8'!H3,'4'!H3)","v":0},{"$f":"SUM('1'!I3,'2'!I3,'3'!I3,'6'!I3,'5'!I3,'7'!I3,'8'!I3,'4'!I3)","v":0},{"$f":"SUM('1'!I3,'2'!I3,'3'!I3,'6'!I3,'5'!I3,'7'!I3,'8'!I3,'4'!I3)","v":0},{"$f":"SUM('1'!K3,'2'!K3,'3'!K3,'6'!K3,'5'!K3,'7'!K3,'8'!K3,'4'!K3)","v":0},{"$f":"SUM('1'!L3,'2'!L3,'3'!L3,'6'!L3,'5'!L3,'7'!L3,'8'!L3,'4'!L3)","v":0},{"$f":"SUM('1'!L3,'2'!L3,'3'!L3,'6'!L3,'5'!L3,'7'!L3,'8'!L3,'4'!L3)","v":0},{"$f":"SUM('1'!N3,'2'!N3,'3'!N3,'6'!N3,'5'!N3,'7'!N3,'8'!N3,'4'!N3)","v":0},{"$f":"SUM('1'!O3,'2'!O3,'3'!O3,'6'!O3,'5'!O3,'7'!O3,'8'!O3,'4'!O3)","v":0},null,null,"Valeur","Degré",null,"x","y","Bas",33,null,"Bas",100,null,null,null,null,null,null,null,null,null,null,null,null,null,null,null,null,null,"AD1/BDH"]
["Nombre d'accident sans arrêt",0,10,{"$f":"SUM('1'!C4,'2'!C4,'3'!C4,'6'!C4,'5'!C4,'7'!C4,'8'!C4,'4'!C4)","v":0},{"$f":"SUM('1'!E4,'2'!E4,'3'!E4,'6'!E4,'5'!E4,'7'!E4,'8'!E4,'4'!E4)","v":0},{"$f":"SUM('1'!F4,'2'!F4,'3'!F4,'6'!F4,'5'!F4,'7'!F4,'8'!F4,'4'!F4)","v":0},{"$f":"SUM('1'!F4,'2'!F4,'3'!F4,'6'!F4,'5'!F4,'7'!F4,'8'!F4,'4'!F4)","v":0},{"$f":"SUM('1'!H4,'2'!H4,'3'!H4,'6'!H4,'5'!H4,'7'!H4,'8'!H4,'4'!H4)","v":0},{"$f":"SUM('1'!I4,'2'!I4,'3'!I4,'6'!I4,'5'!I4,'7'!I4,'8'!I4,'4'!I4)","v":0},{"$f":"SUM('1'!I4,'2'!I4,'3'!I4,'6'!I4,'5'!I4,'7'!I4,'8'!I4,'4'!I4)","v":0},{"$f":"SUM('1'!K4,'2'!K4,'3'!K4,'6'!K4,'5'!K4,'7'!K4,'8'!K4,'4'!K4)","v":0},{"$f":"SUM('1'!L4,'2'!L4,'3'!L4,'6'!L4,'5'!L4,'7'!L4,'8'!L4,'4'!L4)","v":0},{"$f":"SUM('1'!L4,'2'!L4,'3'!L4,'6'!L4,'5'!L4,'7'!L4,'8'!L4,'4'!L4)","v":0},{"$f":"SUM('1'!N4,'2'!N4,'3'!N4,'6'!N4,'5'!N4,'7'!N4,'8'!N4,'4'!N4)","v":0},{"$f":"SUM('1'!O4,'2'!O4,'3'!O4,'6'!O4,'5'!O4,'7'!O4,'8'!O4,'4'!O4)","v":0},null,"Min",0,0,null,{"$f":"50-(50*COS(RADIANS(S6)))","v":0.61558297024311059},{"$f":"50*SIN(RADIANS(S6))","v":7.8217232520115436},"Moyen",33,null,"Moyen",100,null,null,null,null,null,null,null,null,null,null,null,null,null,null,null,null,null,"AD2"]
["Dosimétrie opérationnelle / mois (homme.mSv)",{"$f":"SUM(D5:O5)/C6","v":0},null,{"$f":"SUM('1'!C5,'2'!C5,'3'!C5,'6'!C5,'5'!C5,'7'!C5,'8'!C5,'4'!C5)","v":0},{"$f":"SUM('1'!E5,'2'!E5,'3'!E5,'6'!E5,'5'!E5,'7'!E5,'8'!E5,'4'!E5)","v":0},{"$f":"SUM('1'!F5,'2'!F5,'3'!F5,'6'!F5,'5'!F5,'7'!F5,'8'!F5,'4'!F5)","v":0},{"$f":"SUM('1'!F5,'2'!F5,'3'!F5,'6'!F5,'5'!F5,'7'!F5,'8'!F5,'4'!F5)","v":0},{"$f":"SUM('1'!H5,'2'!H5,'3'!H5,'6'!H5,'5'!H5,'7'!H5,'8'!H5,'4'!H5)","v":0},{"$f":"SUM('1'!I5,'2'!I5,'3'!I5,'6'!I5,'5'!I5,'7'!I5,'8'!I5,'4'!I5)","v":0},{"$f":"SUM('1'!I5,'2'!I5,'3'!I5,'6'!I5,'5'!I5,'7'!I5,'8'!I5,'4'!I5)","v":0},{"$f":"SUM('1'!K5,'2'!K5,'3'!K5,'6'!K5,'5'!K5,'7'!K5,'8'!K5,'4'!K5)","v":0},{"$f":"SUM('1'!L5,'2'!L5,'3'!L5,'6'!L5,'5'!L5,'7'!L5,'8'!L5,'4'!L5)","v":0},{"$f":"SUM('1'!L5,'2'!L5,'3'!L5,'6'!L5,'5'!L5,'7'!L5,'8'!L5,'4'!L5)","v":0},{"$f":"SUM('1'!N5,'2'!N5,'3'!N5,'6'!N5,'5'!N5,'7'!N5,'8'!N5,'4'!N5)","v":0},{"$f":"SUM('1'!O5,'2'!O5,'3'!O5,'6'!O5,'5'!O5,'7'!O5,'8'!O5,'4'!O5)","v":0},null,"Max",{"$f":"20","v":20},180,null,{"$f":"50-(2*COS(RADIANS(S6+90)))","v":50.312868930080462},{"$f":"2*SIN(RADIANS(S6+90))","v":1.9753766811902755},"Haut",33,null,"Haut",100,null,null,null,null,null,null,null,null,null,null,null,null,null,null,null,null,null,"DEM/R7/T7/SEG/MG/R1/T1"]
["Dosimétrie objectif",null,0.4,null,null,null,null,null,null,null,null,null,null,null,null,null,"Résultats",{"$f":"B18","v":1},{"$f":"((R6-R4)/(R5-R4))*180","v":9},null,{"$f":"50-(2*COS(RADIANS(S6-90)))","v":49.687131069919538},{"$f":"2*SIN(RADIANS(S6-90))","v":-1.9753766811902755}]
["Nombre de VSP",0,200,{"$f":"SUM('1'!C6,'2'!C6,'3'!C6,'6'!C6,'5'!C6,'7'!C6,'8'!C6,'4'!C6)","v":0},{"$f":"SUM('1'!E6,'2'!E6,'3'!E6,'6'!E6,'5'!E6,'7'!E6,'8'!E6,'4'!E6)","v":0},{"$f":"SUM('1'!F6,'2'!F6,'3'!F6,'6'!F6,'5'!F6,'7'!F6,'8'!F6,'4'!F6)","v":0},{"$f":"SUM('1'!F6,'2'!F6,'3'!F6,'6'!F6,'5'!F6,'7'!F6,'8'!F6,'4'!F6)","v":0},{"$f":"SUM('1'!H6,'2'!H6,'3'!H6,'6'!H6,'5'!H6,'7'!H6,'8'!H6,'4'!H6)","v":0},{"$f":"SUM('1'!I6,'2'!I6,'3'!I6,'6'!I6,'5'!I6,'7'!I6,'8'!I6,'4'!I6)","v":0},{"$f":"SUM('1'!I6,'2'!I6,'3'!I6,'6'!I6,'5'!I6,'7'!I6,'8'!I6,'4'!I6)","v":0},{"$f":"SUM('1'!K6,'2'!K6,'3'!K6,'6'!K6,'5'!K6,'7'!K6,'8'!K6,'4'!K6)","v":0},{"$f":"SUM('1'!L6,'2'!L6,'3'!L6,'6'!L6,'5'!L6,'7'!L6,'8'!L6,'4'!L6)","v":0},{"$f":"SUM('1'!L6,'2'!L6,'3'!L6,'6'!L6,'5'!L6,'7'!L6,'8'!L6,'4'!L6)","v":0},{"$f":"SUM('1'!N6,'2'!N6,'3'!N6,'6'!N6,'5'!N6,'7'!N6,'8'!N6,'4'!N6)","v":0},{"$f":"SUM('1'!O6,'2'!O6,'3'!O6,'6'!O6,'5'!O6,'7'!O6,'8'!O6,'4'!O6)","v":0},null,"Echelle 1",{"$f":"((R5-R4)/5)+R4","v":4},null,null,{"$f":"U4","v":0.61558297024311059},{"$f":"V4","v":7.8217232520115436},"Valeur X",{"$f":"X2","v":0},{"$f":"X7","v":0},"Valeur X",{"$f":"AA2","v":0},{"$f":"AA7","v":0},null,null,null,null,null,null,null,null,null,null,null,null,null,null,null,null,"RADIOPROTECTION"]
["Nombre d'action en cours issue des VSP",0,15,{"$f":"SUM('1'!C7,'2'!C7,'3'!C7,'6'!C7,'5'!C7,'7'!C7,'8'!C7,'4'!C7)","v":0},{"$f":"SUM('1'!E7,'2'!E7,'3'!E7,'6'!E7,'5'!E7,'7'!E7,'8'!E7,'4'!E7)","v":0},{"$f":"SUM('1'!F7,'2'!F7,'3'!F7,'6'!F7,'5'!F7,'7'!F7,'8'!F7,'4'!F7)","v":0},{"$f":"SUM('1'!F7,'2'!F7,'3'!F7,'6'!F7,'5'!F7,'7'!F7,'8'!F7,'4'!F7)","v":0},{"$f":"SUM('1'!H7,'2'!H7,'3'!H7,'6'!H7,'5'!H7,'7'!H7,'8'!H7,'4'!H7)","v":0},{"$f":"SUM('1'!I7,'2'!I7,'3'!I7,'6'!I7,'5'!I7,'7'!I7,'8'!I7,'4'!I7)","v":0},{"$f":"SUM('1'!I7,'2'!I7,'3'!I7,'6'!I7,'5'!I7,'7'!I7,'8'!I7,'4'!I7)","v":0},{"$f":"SUM('1'!K7,'2'!K7,'3'!K7,'6'!K7,'5'!K7,'7'!K7,'8'!K7,'4'!K7)","v":0},{"$f":"SUM('1'!L7,'2'!L7,'3'!L7,'6'!L7,'5'!L7,'7'!L7,'8'!L7,'4'!L7)","v":0},{"$f":"SUM('1'!L7,'2'!L7,'3'!L7,'6'!L7,'5'!L7,'7'!L7,'8'!L7,'4'!L7)","v":0},{"$f":"SUM('1'!N7,'2'!N7,'3'!N7,'6'!N7,'5'!N7,'7'!N7,'8'!N7,'4'!N7)","v":0},{"$f":"SUM('1'!O7,'2'!O7,'3'!O7,'6'!O7,'5'!O7,'7'!O7,'8'!O7,'4'!O7)","v":0},null,"Echelle 2",{"$f":"((R5-R4)*2/5)+R4","v":8},null,null,50,0,"Valeur Y",0,2,"Valeur Y",0,2,null,null,null,null,null,null,null,null,null,null,null,null,null,null,null,null,"EVAPO R7"]
["Nombre de vérifs sécurité",0,20,{"$f":"SUM('1'!C8,'2'!C8,'3'!C8,'6'!C8,'5'!C8,'7'!C8,'8'!C8,'4'!C8)","v":0},{"$f":"SUM('1'!E8,'2'!E8,'3'!E8,'6'!E8,'5'!E8,'7'!E8,'8'!E8,'4'!E8)","v":0},{"$f":"SUM('1'!F8,'2'!F8,'3'!F8,'6'!F8,'5'!F8,'7'!F8,'8'!F8,'4'!F8)","v":0},{"$f":"SUM('1'!F8,'2'!F8,'3'!F8,'6'!F8,'5'!F8,'7'!F8,'8'!F8,'4'!F8)","v":0},{"$f":"SUM('1'!H8,'2'!H8,'3'!H8,'6'!H8,'5'!H8,'7'!H8,'8'!H8,'4'!H8)","v":0},{"$f":"SUM('1'!I8,'2'!I8,'3'!I8,'6'!I8,'5'!I8,'7'!I8,'8'!I8,'4'!I8)","v":0},{"$f":"SUM('1'!I8,'2'!I8,'3'!I8,'6'!I8,'5'!I8,'7'!I8,'8'!I8,'4'!I8)","v":0},{"$f":"SUM('1'!K8,'2'!K8,'3'!K8,'6'!K8,'5'!K8,'7'!K8,'8'!K8,'4'!K8)","v":0},{"$f":"SUM('1'!L8,'2'!L8,'3'!L8,'6'!L8,'5'!L8,'7'!L8,'8'!L8,'4'!L8)","v":0},{"$f":"SUM('1'!L8,'2'!L8,'3'!L8,'6'!L8,'5'!L8,'7'!L8,'8'!L8,'4'!L8)","v":0},{"$f":"SUM('1'!N8,'2'!N8,'3'!N8,'6'!N8,'5'!N8,'7'!N8,'8'!N8,'4'!N8)","v":0},{"$f":"SUM('1'!O8,'2'!O8,'3'!O8,'6'!O8,'5'!O8,'7'!O8,'8'!O8,'4'!O8)","v":0},null,"Echelle 3",{"$f":"((R5-R4)*3/5) + R4","v":12},null,null,null,null,null,null,null,null,null,null,null,null,null,null,null,null,null,null,null,null,null,null,null,null,null,null,"MULTI SERVICES"]
["Opérations clients",null,null,null,null,null,null,null,null,null,null,null,null,null,null,null,"Echelle 4",{"$f":"((R5-R4)*4/5) + R4","v":16}]
["Carnet de commande",15,20]
["Nombre d'équivalent de mois de FAE",null,15000]
["Evolution du CA (cumulé à date) en k€",1500000,3000000]
["MCD (Cumulé annuel) en k€"]
["Excellence opérationnelle"]
["Moyenne des FAC",{"$f":"AVERAGE(D16:O16)","v":3.5666666666666664},3.5,{"$f":"SUM('1'!C15,'2'!C15,'3'!C15,'6'!C15,'5'!C15,'7'!C15,'8'!C15,'4'!C15)","v":4},{"$f":"SUM('1'!D15,'2'!D15,'3'!D15,'6'!D15,'5'!D15,'7'!D15,'8'!D15,'4'!D15)","v":5},{"$f":"SUM('1'!E15,'2'!E15,'3'!E15,'6'!E15,'5'!E15,'7'!E15,'8'!E15,'4'!E15)","v":4},{"$f":"SUM('1'!F15,'2'!F15,'3'!F15,'6'!F15,'5'!F15,'7'!F15,'8'!F15,'4'!F15)","v":5},{"$f":"SUM('1'!G15,'2'!G15,'3'!G15,'6'!G15,'5'!G15,'7'!G15,'8'!G15,'4'!G15)","v":3.5},{"$f":"SUM('1'!H15,'2'!H15,'3'!H15,'6'!H15,'5'!H15,'7'!H15,'8'!H15,'4'!H15)","v":3},{"$f":"SUM('1'!I15,'2'!I15,'3'!I15,'6'!I15,'5'!I15,'7'!I15,'8'!I15,'4'!I15)","v":4},{"$f":"SUM('1'!J15,'2'!J15,'3'!J15,'6'!J15,'5'!J15,'7'!J15,'8'!J15,'4'!J15)","v":2},{"$f":"SUM('1'!K15,'2'!K15,'3'!K15,'6'!K15,'5'!K15,'7'!K15,'8'!K15,'4'!K15)","v":4},{"$f":"SUM('1'!L15,'2'!L15,'3'!L15,'6'!L15,'5'!L15,'7'!L15,'8'!L15,'4'!L15)","v":3.3},{"$f":"SUM('1'!M15,'2'!M15,'3'!M15,'6'!M15,'5'!M15,'7'!M15,'8'!M15,'4'!M15)","v":2},{"$f":"SUM('1'!N15,'2'!N15,'3'!N15,'6'!N15,'5'!N15,'7'!N15,'8'!N15,'4'!N15)","v":3},null,null,null,null,null,"FAC"]
["Nombre de FNC",null,null,null,null,null,null,null,null,null,null,null,null,null,null,null,null,null,null,null,"Valeur","%","Niveau"]
["Nombre de chantiers 5 S",{"$f":"+SUM(D18:O18)","v":1},4,{"$f":"SUM('1'!C17,'2'!C17,'3'!C17,'6'!C17,'5'!C17,'7'!C17,'8'!C17,'4'!C17)","v":1},{"$f":"SUM('1'!D17,'2'!D17,'3'!D17,'6'!D17,'5'!D17,'7'!D17,'8'!D17,'4'!D17)","v":0},{"$f":"SUM('1'!E17,'2'!E17,'3'!E17,'6'!E17,'5'!E17,'7'!E17,'8'!E17,'4'!E17)","v":0},{"$f":"SUM('1'!F17,'2'!F17,'3'!F17,'6'!F17,'5'!F17,'7'!F17,'8'!F17,'4'!F17)","v":0},{"$f":"SUM('1'!G17,'2'!G17,'3'!G17,'6'!G17,'5'!G17,'7'!G17,'8'!G17,'4'!G17)","v":0},{"$f":"SUM('1'!H17,'2'!H17,'3'!H17,'6'!H17,'5'!H17,'7'!H17,'8'!H17,'4'!H17)","v":0},{"$f":"SUM('1'!I17,'2'!I17,'3'!I17,'6'!I17,'5'!I17,'7'!I17,'8'!I17,'4'!I17)","v":0},{"$f":"SUM('1'!J17,'2'!J17,'3'!J17,'6'!J17,'5'!J17,'7'!J17,'8'!J17,'4'!J17)","v":0},{"$f":"SUM('1'!K17,'2'!K17,'3'!K17,'6'!K17,'5'!K17,'7'!K17,'8'!K17,'4'!K17)","v":0},{"$f":"SUM('1'!L17,'2'!L17,'3'!L17,'6'!L17,'5'!L17,'7'!L17,'8'!L17,'4'!L17)","v":0},{"$f":"SUM('1'!M17,'2'!M17,'3'!M17,'6'!M17,'5'!M17,'7'!M17,'8'!M17,'4'!M17)","v":0},{"$f":"SUM('1'!N17,'2'!N17,'3'!N17,'6'!N17,'5'!N17,'7'!N17,'8'!N17,'4'!N17)","v":0},null,null,null,null,null,{"$f":"B16","v":3.5666666666666664},0.2,"Excellent"]
["Nbr idées Indigo émises LHA (cumulé annuel)",null,null,{"$f":"SUM('1'!C18,'2'!C18,'3'!C18,'6'!C18,'5'!C18,'7'!C18,'8'!C18,'4'!C18)","v":0},{"$f":"(D19+(SUM('1'!D18,'2'!D18,'3'!D18,[9]DEMRT77SEGMGRT11!D18,'5'!D18,'6'!D18,'7'!D18,'8'!D18)))","v":{"$error":"#REF!"}},null,null,null,null,null,null,null,null,null,null,null,null,null,null,null,{"$f":"100%-U18","v":-2.5666666666666664},0.2,"Bon"]
["Nbr idées Indigo déployées LHA (cumulé annuel)",null,null,null,null,null,null,null,null,null,null,null,null,null,null,null,null,null,null,null,null,0.2,"Attention"]
["RH",null,null,null,null,null,null,null,null,null,null,null,null,null,null,null,null,null,null,null,null,0.2,"Mauvais"]
["Absenteisme",0.1,0.5,null,null,null,null,null,null,null,null,null,null,null,null,"Up",{"$f":"IF(B22<C22,1,NA())","v":1},null,null,null,null,0.2,"Alerte"]
["%Formations réalisées(€)/plan de formation",null,null,null,null,null,null,null,null,null,null,null,null,null,null,"Down",{"$f":"IF(B22>=C22,1,NA())","v":{"$error":"#N/A"}}]
["Nombre d'heures supplémentaires",null,null,null,null,null,null,null,null,null,null,null,null,null,null,"Différence",{"$f":"ROUND((B22-C22)*100,0)","v":-40},null,null,null,{"$f":"SUM(U18:U23)","v":1},{"$f":"SUM(V18:V23)","v":1},"Total"]
["Nombre de recrutement en retard",null,null,null,null,null,null,null,null,null,null,null,null,null,null,"Label valeur",{"$f":"IF(B22>C22,CONCATENATE(\"+\",Q24,\"%\"),CONCATENATE(Q24,\"%\"))","v":"-40%"}]

{"sheet":"1","index":5,"n_rows":24,"n_cols":44,"rows_kept":24,"cut":false,"hidden":false,"merged":[]}
["GIE IMAC","Résultats","2018-01-01","2018-02-01","2018-03-01","2018-04-01","2018-05-01","2018-06-01","2018-07-01","2018-08-01","2018-09-01","2018-10-01","2018-11-01","2018-12-01",null,null,null,null,null,null,null,null,null,null,null,null,null,null,null,null,null,null,null,null,null,null,null,null,null,null,null,null,null,"PROJETS"]
["3SE",null,null,null,null,null,null,null,null,null,null,null,null,null,null,null,null,null,null,null,null,null,null,null,null,null,null,null,null,null,null,null,null,null,null,null,null,null,null,null,null,null,null,"GIE IMAC"]
["Nombre d'accident avec arrêt",{"$f":"SUM(C3:N3)","v":6},1,2,3,null,null,null,null,null,null,null,null,null,null,null,null,null,null,null,null,null,null,null,null,null,null,null,null,null,null,null,null,null,null,null,null,null,null,null,null,null,null,"AD1/BDH"]
["Nombre d'accident sans arrêt",0,null,null,null,null,null,null,null,null,null,null,null,null,null,null,null,null,null,null,null,null,null,null,null,null,null,null,null,null,null,null,null,null,null,null,null,null,null,null,null,null,null,"AD2"]
["Dosimétrie opérationnelle / mois (homme.mSv)",0,null,null,null,null,null,null,null,null,null,null,null,null,null,null,null,null,null,null,null,null,null,null,null,null,null,null,null,null,null,null,null,null,null,null,null,null,null,null,null,null,null,"DEM/R7/T7/SEG/MG/R1/T1"]
["Nombre de VSP",0,null,null,null,null,null,null,null,null,null,null,null,null,null,null,null,null,null,null,null,null,null,null,null,null,null,null,null,null,null,null,null,null,null,null,null,null,null,null,null,null,null,"RADIOPROTECTION"]
["Nombre d'action en cours issue des VSP",0,null,null,null,null,null,null,null,null,null,null,null,null,null,null,null,null,null,null,null,null,null,null,null,null,null,null,null,null,null,null,null,null,null,null,null,null,null,null,null,null,null,"EVAPO R7"]
["Nombre de vérifs sécurité",0,null,null,null,null,null,null,null,null,null,null,null,null,null,null,null,null,null,null,null,null,null,null,null,null,null,null,null,null,null,null,null,null,null,null,null,null,null,null,null,null,null,"MULTI SERVICES"]
["Opérations clients"]
["Carnet de commande"]
["Nombre d'équivalent de mois de FAE"]
["Evolution du CA (cumulé à date) en k€"]
["MCD (Cumulé annuel) en k€"]
["Excellence opérationnelle"]
["Moyenne des FAC",null,4,3,4,2,3.5,3,4,2,4,3.3,2,3]
["Nombre de FNC"]
["Nombre de chantiers 5 S"]
["Nbr idées Indigo émises LHA (cumulé annuel)"]
["Nbr idées Indigo déployées LHA (cumulé annuel)"]
["RH",null,null,null,null,null,null,null,null,null,null,null,null,null,"Up"]
["Absenteisme",null,null,null,null,null,null,null,null,null,null,null,null,null,"Down"]
["%Formations réalisées(€)/plan de formation"]
["Nombre d'heures supplémentaires"]
["Nombre de recrutement en retard"]

{"sheet":"2","index":6,"n_rows":24,"n_cols":44,"rows_kept":24,"cut":false,"hidden":false,"merged":[]}
["AD1 BDH","Résultats","2018-01-01","2018-02-01","2018-03-01","2018-04-01","2018-05-01","2018-06-01","2018-07-01","2018-08-01","2018-09-01","2018-10-01","2018-11-01","2018-12-01",null,null,null,null,null,null,null,null,null,null,null,null,null,null,null,null,null,null,null,null,null,null,null,null,null,null,null,null,null,"PROJETS"]
["3SE",null,null,null,null,null,null,null,null,null,null,null,null,null,null,null,null,null,null,null,null,null,null,null,null,null,null,null,null,null,null,null,null,null,null,null,null,null,null,null,null,null,null,"GIE IMAC"]
["Nombre d'accident avec arrêt",{"$f":"SUM(C3:N3)","v":0},null,null,null,null,null,null,null,null,null,null,null,null,null,null,null,null,null,null,null,null,null,null,null,null,null,null,null,null,null,null,null,null,null,null,null,null,null,null,null,null,null,"AD1/BDH"]
["Nombre d'accident sans arrêt",{"$f":"SUM(C4:N4)","v":0},null,null,null,null,null,null,null,null,null,null,null,null,null,null,null,null,null,null,null,null,null,null,null,null,null,null,null,null,null,null,null,null,null,null,null,null,null,null,null,null,null,"AD2"]
["Dosimétrie opérationnelle / mois (homme.mSv)",null,null,null,null,null,null,null,null,null,null,null,null,null,null,null,null,null,null,null,null,null,null,null,null,null,null,null,null,null,null,null,null,null,null,null,null,null,null,null,null,null,null,"DEM/R7/T7/SEG/MG/R1/T1"]
["Nombre de VSP",null,null,null,null,null,null,null,null,null,null,null,null,null,null,null,null,null,null,null,null,null,null,null,null,null,null,null,null,null,null,null,null,null,null,null,null,null,null,null,null,null,null,"RADIOPROTECTION"]
["Nombre d'action en cours issue des VSP",null,null,null,null,null,null,null,null,null,null,null,null,null,null,null,null,null,null,null,null,null,null,null,null,null,null,null,null,null,null,null,null,null,null,null,null,null,null,null,null,null,null,"EVAPO R7"]
["Nombre de vérifs sécurité",null,null,null,null,null,null,null,null,null,null,null,null,null,null,null,null,null,null,null,null,null,null,null,null,null,null,null,null,null,null,null,null,null,null,null,null,null,null,null,null,null,null,"MULTI SERVICES"]
["Opérations clients"]
["Carnet de commande"]
["Nombre d'équivalent de mois de FAE"]
["Evolution du CA (cumulé à date) en k€"]
["MCD (Cumulé annuel) en k€"]
["Excellence opérationnelle"]
["Moyenne des FAC",null,null,2,null,3]
["Nombre de FNC"]
["Nombre de chantiers 5 S",null,{"$f":"1","v":1}]
["Nbr idées Indigo émises LHA (cumulé annuel)"]
["Nbr idées Indigo déployées LHA (cumulé annuel)"]
["RH"]
["Absenteisme"]
["%Formations réalisées(€)/plan de formation"]
["Nombre d'heures supplémentaires"]
["Nombre de recrutement en retard"]

{"sheet":"3","index":7,"n_rows":24,"n_cols":44,"rows_kept":24,"cut":false,"hidden":false,"merged":[]}
["AD2","Résultats","2018-01-01","2018-02-01","2018-03-01","2018-04-01","2018-05-01","2018-06-01","2018-07-01","2018-08-01","2018-09-01","2018-10-01","2018-11-01","2018-12-01",null,null,null,null,null,null,null,null,null,null,null,null,null,null,null,null,null,null,null,null,null,null,null,null,null,null,null,null,null,"PROJETS"]
["3SE",null,null,null,null,null,null,null,null,null,null,null,null,null,null,null,null,null,null,null,null,null,null,null,null,null,null,null,null,null,null,null,null,null,null,null,null,null,null,null,null,null,null,"GIE IMAC"]
["Nombre d'accident avec arrêt",{"$f":"SUM(C3:N3)","v":0},null,null,null,null,null,null,null,null,null,null,null,null,null,null,null,null,null,null,null,null,null,null,null,null,null,null,null,null,null,null,null,null,null,null,null,null,null,null,null,null,null,"AD1/BDH"]
["Nombre d'accident sans arrêt",{"$f":"SUM(C4:N4)","v":0},null,null,null,null,null,null,null,null,null,null,null,null,null,null,null,null,null,null,null,null,null,null,null,null,null,null,null,null,null,null,null,null,null,null,null,null,null,null,null,null,null,"AD2"]
["Dosimétrie opérationnelle / mois (homme.mSv)",null,null,null,null,null,null,null,null,null,null,null,null,null,null,null,null,null,null,null,null,null,null,null,null,null,null,null,null,null,null,null,null,null,null,null,null,null,null,null,null,null,null,"DEM/R7/T7/SEG/MG/R1/T1"]
["Nombre de VSP",null,null,null,null,null,null,null,null,null,null,null,null,null,null,null,null,null,null,null,null,null,null,null,null,null,null,null,null,null,null,null,null,null,null,null,null,null,null,null,null,null,null,"RADIOPROTECTION"]
["Nombre d'action en cours issue des VSP",null,null,null,null,null,null,null,null,null,null,null,null,null,null,null,null,null,null,null,null,null,null,null,null,null,null,null,null,null,null,null,null,null,null,null,null,null,null,null,null,null,null,"EVAPO R7"]
["Nombre de vérifs sécurité",null,null,null,null,null,null,null,null,null,null,null,null,null,null,null,null,null,null,null,null,null,null,null,null,null,null,null,null,null,null,null,null,null,null,null,null,null,null,null,null,null,null,"MULTI SERVICES"]
["Opérations clients"]
["Carnet de commande"]
["Nombre d'équivalent de mois de FAE"]
["Evolution du CA (cumulé à date) en k€"]
["MCD (Cumulé annuel) en k€"]
["Excellence opérationnelle"]
["Moyenne des FAC"]
["Nombre de FNC"]
["Nombre de chantiers 5 S"]
["Nbr idées Indigo émises LHA (cumulé annuel)"]
["Nbr idées Indigo déployées LHA (cumulé annuel)"]
["RH"]
["Absenteisme"]
["%Formations réalisées(€)/plan de formation"]
["Nombre d'heures supplémentaires"]
["Nombre de recrutement en retard"]

{"sheet":"4","index":8,"n_rows":24,"n_cols":44,"rows_kept":24,"cut":false,"hidden":false,"merged":[]}
["DEM R7 T7 SEG MG R1 T1","Résultats","2018-01-01","2018-02-01","2018-03-01","2018-04-01","2018-05-01","2018-06-01","2018-07-01","2018-08-01","2018-09-01","2018-10-01","2018-11-01","2018-12-01",null,null,null,null,null,null,null,null,null,null,null,null,null,null,null,null,null,null,null,null,null,null,null,null,null,null,null,null,null,"PROJETS"]
["3SE",null,null,null,null,null,null,null,null,null,null,null,null,null,null,null,null,null,null,null,null,null,null,null,null,null,null,null,null,null,null,null,null,null,null,null,null,null,null,null,null,null,null,"GIE IMAC"]
["Nombre d'accident avec arrêt",{"$f":"SUM(C3:N3)","v":10},10,null,null,null,null,null,null,null,null,null,null,null,null,null,null,null,null,null,null,null,null,null,null,null,null,null,null,null,null,null,null,null,null,null,null,null,null,null,null,null,null,"AD1/BDH"]
["Nombre d'accident sans arrêt",0,null,null,null,null,null,null,null,null,null,null,null,null,null,null,null,null,null,null,null,null,null,null,null,null,null,null,null,null,null,null,null,null,null,null,null,null,null,null,null,null,null,"AD2"]
["Dosimétrie opérationnelle / mois (homme.mSv)",0,null,null,null,null,null,null,null,null,null,null,null,null,null,null,null,null,null,null,null,null,null,null,null,null,null,null,null,null,null,null,null,null,null,null,null,null,null,null,null,null,null,"DEM/R7/T7/SEG/MG/R1/T1"]
["Nombre de VSP",0,null,null,null,null,null,null,null,null,null,null,null,null,null,null,null,null,null,null,null,null,null,null,null,null,null,null,null,null,null,null,null,null,null,null,null,null,null,null,null,null,null,"RADIOPROTECTION"]
["Nombre d'action en cours issue des VSP",0,null,null,null,null,null,null,null,null,null,null,null,null,null,null,null,null,null,null,null,null,null,null,null,null,null,null,null,null,null,null,null,null,null,null,null,null,null,null,null,null,null,"EVAPO R7"]
["Nombre de vérifs sécurité",0,null,null,null,null,null,null,null,null,null,null,null,null,null,null,null,null,null,null,null,null,null,null,null,null,null,null,null,null,null,null,null,null,null,null,null,null,null,null,null,null,null,"MULTI SERVICES"]
["Opérations clients"]
["Carnet de commande"]
["Nombre d'équivalent de mois de FAE"]
["Evolution du CA (cumulé à date) en k€"]
["MCD (Cumulé annuel) en k€"]
["Excellence opérationnelle"]
["Moyenne des FAC"]
["Nombre de FNC"]
["Nombre de chantiers 5 S"]
["Nbr idées Indigo émises LHA (cumulé annuel)"]
["Nbr idées Indigo déployées LHA (cumulé annuel)"]
["RH"]
["Absenteisme"]
["%Formations réalisées(€)/plan de formation"]
["Nombre d'heures supplémentaires"]
["Nombre de recrutement en retard"]

{"sheet":"5","index":9,"n_rows":24,"n_cols":44,"rows_kept":24,"cut":false,"hidden":false,"merged":[]}
["RADIOPROTECTION","Résultats","2018-01-01","2018-02-01","2018-03-01","2018-04-01","2018-05-01","2018-06-01","2018-07-01","2018-08-01","2018-09-01","2018-10-01","2018-11-01","2018-12-01",null,null,null,null,null,null,null,null,null,null,null,null,null,null,null,null,null,null,null,null,null,null,null,null,null,null,null,null,null,"PROJETS"]
["3SE",null,null,null,null,null,null,null,null,null,null,null,null,null,null,null,null,null,null,null,null,null,null,null,null,null,null,null,null,null,null,null,null,null,null,null,null,null,null,null,null,null,null,"GIE IMAC"]
["Nombre d'accident avec arrêt",{"$f":"SUM(C3:N3)","v":0},null,null,null,null,null,null,null,null,null,null,null,null,null,null,null,null,null,null,null,null,null,null,null,null,null,null,null,null,null,null,null,null,null,null,null,null,null,null,null,null,null,"AD1/BDH"]
["Nombre d'accident sans arrêt",0,null,null,null,null,null,null,null,null,null,null,null,null,null,null,null,null,null,null,null,null,null,null,null,null,null,null,null,null,null,null,null,null,null,null,null,null,null,null,null,null,null,"AD2"]
["Dosimétrie opérationnelle / mois (homme.mSv)",0,null,null,null,null,null,null,null,null,null,null,null,null,null,null,null,null,null,null,null,null,null,null,null,null,null,null,null,null,null,null,null,null,null,null,null,null,null,null,null,null,null,"DEM/R7/T7/SEG/MG/R1/T1"]
["Nombre de VSP",0,null,null,null,null,null,null,null,null,null,null,null,null,null,null,null,null,null,null,null,null,null,null,null,null,null,null,null,null,null,null,null,null,null,null,null,null,null,null,null,null,null,"RADIOPROTECTION"]
["Nombre d'action en cours issue des VSP",0,null,null,null,null,null,null,null,null,null,null,null,null,null,null,null,null,null,null,null,null,null,null,null,null,null,null,null,null,null,null,null,null,null,null,null,null,null,null,null,null,null,"EVAPO R7"]
["Nombre de vérifs sécurité",0,null,null,null,null,null,null,null,null,null,null,null,null,null,null,null,null,null,null,null,null,null,null,null,null,null,null,null,null,null,null,null,null,null,null,null,null,null,null,null,null,null,"MULTI SERVICES"]
["Opérations clients"]
["Carnet de commande"]
["Nombre d'équivalent de mois de FAE"]
["Evolution du CA (cumulé à date) en k€"]
["MCD (Cumulé annuel) en k€"]
["Excellence opérationnelle"]
["Moyenne des FAC"]
["Nombre de FNC"]
["Nombre de chantiers 5 S"]
["Nbr idées Indigo émises LHA (cumulé annuel)"]
["Nbr idées Indigo déployées LHA (cumulé annuel)"]
["RH"]
["Absenteisme"]
["%Formations réalisées(€)/plan de formation"]
["Nombre d'heures supplémentaires"]
["Nombre de recrutement en retard"]

{"sheet":"6","index":10,"n_rows":24,"n_cols":44,"rows_kept":24,"cut":false,"hidden":false,"merged":[]}
["EVAPO R7","Résultats","2018-01-01","2018-02-01","2018-03-01","2018-04-01","2018-05-01","2018-06-01","2018-07-01","2018-08-01","2018-09-01","2018-10-01","2018-11-01","2018-12-01",null,null,null,null,null,null,null,null,null,null,null,null,null,null,null,null,null,null,null,null,null,null,null,null,null,null,null,null,null,"PROJETS"]
["3SE",null,null,null,null,null,null,null,null,null,null,null,null,null,null,null,null,null,null,null,null,null,null,null,null,null,null,null,null,null,null,null,null,null,null,null,null,null,null,null,null,null,null,"GIE IMAC"]
["Nombre d'accident avec arrêt",{"$f":"SUM(C3:N3)","v":0},null,null,null,null,null,null,null,null,null,null,null,null,null,null,null,null,null,null,null,null,null,null,null,null,null,null,null,null,null,null,null,null,null,null,null,null,null,null,null,null,null,"AD1/BDH"]
["Nombre d'accident sans arrêt",0,null,null,null,null,null,null,null,null,null,null,null,null,null,null,null,null,null,null,null,null,null,null,null,null,null,null,null,null,null,null,null,null,null,null,null,null,null,null,null,null,null,"AD2"]
["Dosimétrie opérationnelle / mois (homme.mSv)",0,null,null,null,null,null,null,null,null,null,null,null,null,null,null,null,null,null,null,null,null,null,null,null,null,null,null,null,null,null,null,null,null,null,null,null,null,null,null,null,null,null,"DEM/R7/T7/SEG/MG/R1/T1"]
["Nombre de VSP",0,null,null,null,null,null,null,null,null,null,null,null,null,null,null,null,null,null,null,null,null,null,null,null,null,null,null,null,null,null,null,null,null,null,null,null,null,null,null,null,null,null,"RADIOPROTECTION"]
["Nombre d'action en cours issue des VSP",0,null,null,null,null,null,null,null,null,null,null,null,null,null,null,null,null,null,null,null,null,null,null,null,null,null,null,null,null,null,null,null,null,null,null,null,null,null,null,null,null,null,"EVAPO R7"]
["Nombre de vérifs sécurité",0,null,null,null,null,null,null,null,null,null,null,null,null,null,null,null,null,null,null,null,null,null,null,null,null,null,null,null,null,null,null,null,null,null,null,null,null,null,null,null,null,null,"MULTI SERVICES"]
["Opérations clients"]
["Carnet de commande"]
["Nombre d'équivalent de mois de FAE"]
["Evolution du CA (cumulé à date) en k€"]
["MCD (Cumulé annuel) en k€"]
["Excellence opérationnelle"]
["Moyenne des FAC"]
["Nombre de FNC"]
["Nombre de chantiers 5 S"]
["Nbr idées Indigo émises LHA (cumulé annuel)"]
["Nbr idées Indigo déployées LHA (cumulé annuel)"]
["RH"]
["Absenteisme"]
["%Formations réalisées(€)/plan de formation"]
["Nombre d'heures supplémentaires"]
["Nombre de recrutement en retard"]

{"sheet":"7","index":11,"n_rows":24,"n_cols":44,"rows_kept":24,"cut":false,"hidden":false,"merged":[]}
["SILO 130","Résultats","2018-01-01","2018-02-01","2018-03-01","2018-04-01","2018-05-01","2018-06-01","2018-07-01","2018-08-01","2018-09-01","2018-10-01","2018-11-01","2018-12-01",null,null,null,null,null,null,null,null,null,null,null,null,null,null,null,null,null,null,null,null,null,null,null,null,null,null,null,null,null,"PROJETS"]
["3SE",null,null,null,null,null,null,null,null,null,null,null,null,null,null,null,null,null,null,null,null,null,null,null,null,null,null,null,null,null,null,null,null,null,null,null,null,null,null,null,null,null,null,"GIE IMAC"]
["Nombre d'accident avec arrêt",{"$f":"SUM(C3:N3)","v":0},null,null,null,null,null,null,null,null,null,null,null,null,null,null,null,null,null,null,null,null,null,null,null,null,null,null,null,null,null,null,null,null,null,null,null,null,null,null,null,null,null,"AD1/BDH"]
["Nombre d'accident sans arrêt",0,null,null,null,null,null,null,null,null,null,null,null,null,null,null,null,null,null,null,null,null,null,null,null,null,null,null,null,null,null,null,null,null,null,null,null,null,null,null,null,null,null,"AD2"]
["Dosimétrie opérationnelle / mois (homme.mSv)",0,null,null,null,null,null,null,null,null,null,null,null,null,null,null,null,null,null,null,null,null,null,null,null,null,null,null,null,null,null,null,null,null,null,null,null,null,null,null,null,null,null,"DEM/R7/T7/SEG/MG/R1/T1"]
["Nombre de VSP",0,null,null,null,null,null,null,null,null,null,null,null,null,null,null,null,null,null,null,null,null,null,null,null,null,null,null,null,null,null,null,null,null,null,null,null,null,null,null,null,null,null,"RADIOPROTECTION"]
["Nombre d'action en cours issue des VSP",0,null,null,null,null,null,null,null,null,null,null,null,null,null,null,null,null,null,null,null,null,null,null,null,null,null,null,null,null,null,null,null,null,null,null,null,null,null,null,null,null,null,"EVAPO R7"]
["Nombre de vérifs sécurité",0,null,null,null,null,null,null,null,null,null,null,null,null,null,null,null,null,null,null,null,null,null,null,null,null,null,null,null,null,null,null,null,null,null,null,null,null,null,null,null,null,null,"MULTI SERVICES"]
["Opérations clients"]
["Carnet de commande"]
["Nombre d'équivalent de mois de FAE"]
["Evolution du CA (cumulé à date) en k€"]
["MCD (Cumulé annuel) en k€"]
["Excellence opérationnelle"]
["Moyenne des FAC"]
["Nombre de FNC"]
["Nombre de chantiers 5 S"]
["Nbr idées Indigo émises LHA (cumulé annuel)"]
["Nbr idées Indigo déployées LHA (cumulé annuel)"]
["RH"]
["Absenteisme"]
["%Formations réalisées(€)/plan de formation"]
["Nombre d'heures supplémentaires"]
["Nombre de recrutement en retard"]

{"sheet":"8","index":12,"n_rows":24,"n_cols":44,"rows_kept":24,"cut":false,"hidden":false,"merged":[]}
["MULTI SERVICES","Résultats","2018-01-01","2018-02-01","2018-03-01","2018-04-01","2018-05-01","2018-06-01","2018-07-01","2018-08-01","2018-09-01","2018-10-01","2018-11-01","2018-12-01",null,null,null,null,null,null,null,null,null,null,null,null,null,null,null,null,null,null,null,null,null,null,null,null,null,null,null,null,null,"PROJETS"]
["3SE",null,null,null,null,null,null,null,null,null,null,null,null,null,null,null,null,null,null,null,null,null,null,null,null,null,null,null,null,null,null,null,null,null,null,null,null,null,null,null,null,null,null,"GIE IMAC"]
["Nombre d'accident avec arrêt",{"$f":"SUM(C3:N3)","v":0},null,null,null,null,null,null,null,null,null,null,null,null,null,null,null,null,null,null,null,null,null,null,null,null,null,null,null,null,null,null,null,null,null,null,null,null,null,null,null,null,null,"AD1/BDH"]
["Nombre d'accident sans arrêt",0,null,null,null,null,null,null,null,null,null,null,null,null,null,null,null,null,null,null,null,null,null,null,null,null,null,null,null,null,null,null,null,null,null,null,null,null,null,null,null,null,null,"AD2"]
["Dosimétrie opérationnelle / mois (homme.mSv)",0,null,null,null,null,null,null,null,null,null,null,null,null,null,null,null,null,null,null,null,null,null,null,null,null,null,null,null,null,null,null,null,null,null,null,null,null,null,null,null,null,null,"DEM/R7/T7/SEG/MG/R1/T1"]
["Nombre de VSP",0,null,null,null,null,null,null,null,null,null,null,null,null,null,null,null,null,null,null,null,null,null,null,null,null,null,null,null,null,null,null,null,null,null,null,null,null,null,null,null,null,null,"RADIOPROTECTION"]
["Nombre d'action en cours issue des VSP",0,null,null,null,null,null,null,null,null,null,null,null,null,null,null,null,null,null,null,null,null,null,null,null,null,null,null,null,null,null,null,null,null,null,null,null,null,null,null,null,null,null,"EVAPO R7"]
["Nombre de vérifs sécurité",0,null,null,null,null,null,null,null,null,null,null,null,null,null,null,null,null,null,null,null,null,null,null,null,null,null,null,null,null,null,null,null,null,null,null,null,null,null,null,null,null,null,"MULTI SERVICES"]
["Opérations clients"]
["Carnet de commande"]
["Nombre d'équivalent de mois de FAE"]
["Evolution du CA (cumulé à date) en k€"]
["MCD (Cumulé annuel) en k€"]
["Excellence opérationnelle"]
["Moyenne des FAC"]
["Nombre de FNC"]
["Nombre de chantiers 5 S"]
["Nbr idées Indigo émises LHA (cumulé annuel)"]
["Nbr idées Indigo déployées LHA (cumulé annuel)"]
["RH"]
["Absenteisme"]
["%Formations réalisées(€)/plan de formation"]
["Nombre d'heures supplémentaires"]
["Nombre de recrutement en retard"]

{"sheet":"SSSE","index":13,"n_rows":0,"n_cols":0,"rows_kept":0,"cut":false,"hidden":false,"merged":[]}